bitfinex/quotes_BTCUSD_20241215
["timestamp","ask_amount","ask_price","bid_price","bid_amount"]
[1734291495389,0.00530647,103150.0,103140.0,1.09672504]
[1734291495596,0.00530647,103150.0,103140.0,1.15880952]
[1734291499014,0.00530647,103150.0,103140.0,2.9733348]
[1734291499214,0.00530647,103150.0,103140.0,2.91533752]
[1734291499826,0.00530647,103150.0,103140.0,2.43488156]
[1734291500157,0.00530647,103150.0,103140.0,2.67230445]
[1734291500366,0.00530647,103150.0,103140.0,3.0336206]
[1734291500564,0.00530647,103150.0,103140.0,3.20765474]
[1734291500768,0.00530647,103150.0,103140.0,3.0336206]
[1734291500972,0.00530647,103150.0,103140.0,3.20765474]
[1734291501175,0.00530647,103150.0,103140.0,3.30670877]
[1734291503257,0.0001726,103150.0,103140.0,3.30670877]
[1734291504081,0.0001726,103150.0,103140.0,3.12839487]
[1734291505400,0.0001726,103150.0,103140.0,3.30192459]
[1734291505625,0.0001726,103150.0,103140.0,3.12839487]
[1734291506517,0.0001726,103150.0,103140.0,3.30195385]
[1734291507905,0.0001726,103150.0,103140.0,3.63185385]
[1734291508340,0.0001726,103150.0,103140.0,2.9338021]
[1734291508541,0.0001726,103150.0,103140.0,3.63020421]
[1734291510041,6e-07,103150.0,103140.0,3.65320421]
[1734291510249,6e-07,103150.0,103140.0,1.77325659]
[1734291510890,6e-07,103150.0,103140.0,1.44335659]
[1734291511333,0.0001726,103170.0,103160.0,0.3763]
[1734291511566,0.00033097,103170.0,103160.0,0.94735575]
[1734291511790,0.00033097,103170.0,103160.0,6.34466993]
[1734291512024,0.00033097,103170.0,103160.0,6.51789625]
[1734291512444,0.00033097,103170.0,103160.0,6.34466993]
[1734291512797,0.00033097,103170.0,103160.0,6.67456993]
[1734291513019,0.00033097,103170.0,103160.0,6.97771599]
[1734291513370,0.00033097,103170.0,103160.0,7.02761916]
[1734291513961,0.00033097,103170.0,103160.0,6.97761916]
[1734291514175,0.00033097,103170.0,103160.0,7.11413569]
[1734291514588,0.00033097,103170.0,103160.0,6.89760279]
[1734291514815,0.00033097,103170.0,103160.0,7.11413569]
[1734291515255,0.00033097,103170.0,103160.0,6.89760279]
[1734291516384,0.00033097,103170.0,103160.0,6.72437647]
[1734291517382,0.00033097,103170.0,103160.0,6.89760279]
[1734291517537,0.00033097,103170.0,103160.0,6.72437647]
[1734291518145,0.00033097,103170.0,103160.0,6.73665466]
[1734291518362,0.00033097,103170.0,103160.0,4.61818031]
[1734291518560,0.00033097,103170.0,103160.0,4.53166378]
[1734291518731,0.00033097,103170.0,103160.0,4.55150372]
[1734291519086,0.00033097,103170.0,103160.0,4.63802025]
[1734291519495,0.00033097,103170.0,103160.0,4.55150372]
[1734291522524,0.00033097,103170.0,103160.0,1.27276072]
[1734291522911,0.00033097,103170.0,103160.0,6.19504372]
[1734291523106,0.00033097,103170.0,103160.0,5.95873472]
[1734291523488,0.00033097,103170.0,103160.0,5.93550272]
[1734291523689,0.00033097,103170.0,103160.0,5.91128572]
[1734291523989,0.00033097,103170.0,103160.0,5.69333272]
[1734291525350,0.00033097,103170.0,103160.0,5.77984925]
[1734291525587,0.00033097,103170.0,103160.0,5.69333272]
[1734291526071,0.00033097,103170.0,103160.0,5.37280572]
[1734291527302,0.00033097,103170.0,103160.0,5.37575823]
[1734291527507,0.00033097,103170.0,103160.0,5.30692123]
[1734291528535,0.00033097,103170.0,103160.0,5.01599423]
[1734291528783,0.00033097,103170.0,103160.0,4.55397123]
[1734291528999,0.00033097,103170.0,103160.0,4.53653223]
[1734291529621,0.00033097,103170.0,103160.0,4.62304876]
[1734291532488,0.00033097,103170.0,103160.0,4.75287167]
[1734291533570,0.00033097,103170.0,103160.0,5.05371726]
[1734291534347,0.00033097,103170.0,103160.0,5.22399107]
[1734291535691,0.00033097,103170.0,103160.0,5.22383822]
[1734291536540,0.00033097,103170.0,103160.0,5.4400996]
[1734291536746,0.00033097,103170.0,103160.0,5.44294076]
[1734291536929,0.00033097,103170.0,103160.0,5.22667938]
[1734291537083,0.00033097,103170.0,103160.0,5.44294076]
[1734291537295,0.00033097,103170.0,103160.0,1.83956038]
[1734291537493,0.00033097,103170.0,103160.0,6.57693621]
[1734291537894,0.00033097,103170.0,103160.0,6.66348268]
[1734291538524,0.00033097,103170.0,103160.0,6.57693621]
[1734291539580,0.00033097,103170.0,103160.0,6.44717939]
[1734291539780,0.00033097,103170.0,103160.0,6.57708699]
[1734291540210,0.00033097,103170.0,103160.0,6.65488699]
[1734291540398,0.00033097,103170.0,103160.0,6.48511439]
[1734291542472,0.00033097,103170.0,103160.0,6.31210529]
[1734291543468,0.00033097,103170.0,103160.0,6.31259445]
[1734291544501,0.00033097,103170.0,103160.0,6.77714097]
[1734291545857,0.00033097,103170.0,103160.0,6.77533406]
[1734291547048,0.00033097,103170.0,103160.0,6.54658521]
[1734291547248,0.00033097,103170.0,103160.0,6.2331187]
[1734291547452,0.00033097,103170.0,103160.0,6.01622824]
[1734291548124,0.00033097,103170.0,103160.0,6.01643985]
[1734291548342,9.7e-07,103170.0,103160.0,6.03943985]
[1734291548552,9.7e-07,103170.0,103160.0,2.15261321]
[1734291552667,9.7e-07,103170.0,103160.0,1.17135303]
[1734291552869,9.7e-07,103170.0,103160.0,1.73215453]
[1734291553075,5.8e-07,103170.0,103160.0,1.73215453]
[1734291553479,0.0001726,103180.0,103170.0,5.493471]
[1734291553702,0.0001726,103180.0,103170.0,5.35398726]
[1734291553703,0.00027834,103180.0,103170.0,5.35398726]
[1734291553907,0.00027834,103180.0,103170.0,5.55340875]
[1734291554548,0.07627834,103180.0,103170.0,4.05576359]
[1734291554755,0.07627834,103180.0,103170.0,3.50194831]
[1734291554992,0.08104926,103180.0,103170.0,3.38595375]
[1734291555193,0.13004926,103180.0,103170.0,2.81564431]
[1734291555396,0.13004926,103180.0,103170.0,3.03287257]
[1734291555603,0.13004926,103180.0,103170.0,2.86564431]
[1734291557173,0.13004926,103180.0,103170.0,3.54797371]
[1734291559150,0.13004926,103180.0,103170.0,3.21807371]
[1734291561024,0.13004926,103180.0,103170.0,3.16807371]
[1734291561382,0.13004926,103180.0,103170.0,2.80899415]
[1734291561599,0.13004926,103180.0,103170.0,2.09381344]
[1734291561835,0.13004926,103180.0,103170.0,1.84336554]
[1734291566857,0.13004926,103180.0,103170.0,1.84345174]
[1734291569984,0.13004926,103180.0,103170.0,1.8484597]
[1734291570232,0.13004926,103180.0,103170.0,2.0423137]
[1734291571910,0.13004926,103180.0,103170.0,1.82493614]
[1734291572699,0.13004926,103180.0,103170.0,2.35723576]
[1734291573006,0.13004926,103180.0,103170.0,2.0864022]
[1734291573274,0.22910329,103180.0,103170.0,0.14508054]
[1734291573522,0.42293929,103180.0,103170.0,8.62e-05]
[1734291573759,0.22910329,103180.0,103170.0,0.25193748]
[1734291574260,0.22910329,103180.0,103170.0,0.20808348]
[1734291574501,0.42293929,103180.0,103170.0,0.20808348]
[1734291575816,0.22910329,103180.0,103170.0,0.40193748]
[1734291576281,0.42293929,103180.0,103170.0,0.1500862]
[1734291576521,0.42293929,103180.0,103170.0,0.20808348]
[1734291581645,0.42538974,103180.0,103170.0,0.20808348]
[1734291582782,0.42538974,103180.0,103170.0,0.1500862]
[1734291583185,0.42358428,103180.0,103170.0,0.1500862]
[1734291584036,0.42358428,103180.0,103170.0,0.20808348]
[1734291586054,0.42358428,103180.0,103170.0,0.1500862]
[1734291596385,0.42358428,103180.0,103170.0,0.01390067]
[1734291596592,0.1322,103170.0,103160.0,0.42926162]
[1734291596798,0.23125403,103170.0,103160.0,0.42926162]
[1734291596977,0.23664368,103170.0,103160.0,0.42926162]
[1734291597594,0.23664368,103170.0,103160.0,0.23539962]
[1734291598740,0.23664368,103170.0,103160.0,0.38539962]
[1734291600834,0.23664368,103170.0,103160.0,0.17752613]
[1734291601038,0.23664368,103170.0,103160.0,0.38288036]
[1734291601426,0.23664368,103170.0,103160.0,0.26335151]
[1734291602331,0.23664368,103170.0,103160.0,0.26343771]
[1734291604022,0.23844023,103170.0,103160.0,0.26343771]
[1734291606329,0.23844023,103170.0,103160.0,0.32187725]
[1734291606540,0.23844023,103170.0,103160.0,2.57987425]
[1734291606541,0.0071862,103170.0,103160.0,2.57987425]
[1734291606805,0.0071862,103170.0,103160.0,2.28051925]
[1734291606971,0.0071862,103170.0,103160.0,2.43051925]
[1734291607343,0.0071862,103170.0,103160.0,2.35302525]
[1734291610062,0.0071862,103170.0,103160.0,1.96942525]
[1734291610261,0.0071862,103170.0,103160.0,1.76793925]
[1734291610877,0.0071862,103170.0,103160.0,1.85466813]
[1734291611488,0.0071862,103170.0,103160.0,1.86822913]
[1734291611695,0.0071862,103170.0,103160.0,1.90023979]
[1734291611906,0.0071862,103170.0,103160.0,1.87117979]
[1734291612139,0.0071862,103170.0,103160.0,2.0013401]
[1734291613153,0.0071862,103170.0,103160.0,2.28539807]
[1734291613897,0.0073586,103170.0,103160.0,2.28539807]
[1734291615174,0.0073586,103170.0,103160.0,2.45894515]
[1734291615813,0.0073586,103170.0,103160.0,2.42794515]
[1734291617134,0.0073586,103170.0,103160.0,2.644879]
[1734291618161,0.0073586,103170.0,103160.0,2.55810546]
[1734291619524,0.0073586,103170.0,103160.0,2.52613946]
[1734291620871,0.0073586,103170.0,103160.0,2.52760274]
[1734291622311,0.0073586,103170.0,103160.0,2.51404374]
[1734291622522,0.0825586,103170.0,103160.0,2.51404374]
[1734291624833,0.0825586,103170.0,103160.0,1.48433774]
[1734291625045,0.0825586,103170.0,103160.0,1.57124726]
[1734291625434,0.0825586,103170.0,103160.0,1.35395618]
[1734291625854,0.0825586,103170.0,103160.0,1.18012332]
[1734291629902,0.0825586,103170.0,103160.0,1.14912632]
[1734291632179,0.0825586,103170.0,103160.0,1.32295918]
[1734291633289,0.22781263,103170.0,103160.0,0.63072187]
[1734291633506,0.22781263,103170.0,103160.0,0.41343771]
[1734291635346,0.42166663,103170.0,103160.0,0.16157743]
[1734291635622,0.42166663,103170.0,103160.0,0.21957471]
[1734291638225,0.42166663,103170.0,103160.0,0.06957471]
[1734291638440,0.42166663,103170.0,103160.0,0.1500862]
[1734291638869,0.42166663,103170.0,103160.0,8.62e-05]
[1734291649627,0.43287771,103170.0,103160.0,8.62e-05]
[1734291654655,0.50587771,103170.0,103160.0,8.62e-05]
[1734291654864,0.56387499,103170.0,103160.0,8.62e-05]
[1734291655071,0.59295015,103170.0,103160.0,8.62e-05]
[1734291655523,0.65094743,103170.0,103160.0,8.62e-05]
[1734291656139,0.65094743,103170.0,103130.0,0.23654829]
[1734291656140,0.324602,103150.0,103130.0,0.23654829]
[1734291656355,0.09905403,103140.0,103130.0,0.23654829]
[1734291656596,0.10536542,103140.0,103130.0,0.23654829]
[1734291657636,0.10536542,103140.0,103130.0,0.23709362]
[1734291657862,0.18706542,103140.0,103130.0,0.23709362]
[1734291658495,0.18706542,103140.0,103130.0,0.40144272]
[1734291658904,0.18706542,103140.0,103130.0,0.34344544]
[1734291659110,0.18706542,103140.0,103130.0,0.40144272]
[1734291660556,0.38097642,103140.0,103130.0,0.01498063]
[1734291660972,0.38097642,103140.0,103130.0,0.16498063]
[1734291661178,0.38097642,103140.0,103130.0,0.22297791]
[1734291661597,0.42997642,103140.0,103130.0,0.22297791]
[1734291663767,0.42997642,103140.0,103130.0,0.05799728]
[1734291664339,0.23606542,103140.0,103130.0,0.25192628]
[1734291665368,0.42997642,103140.0,103130.0,0.25192628]
[1734291667065,0.42997642,103140.0,103130.0,0.24792628]
[1734291669126,0.42997642,103140.0,103130.0,0.193929]
[1734291669344,0.42997642,103140.0,103130.0,0.25192628]
[1734291671274,0.42997642,103140.0,103130.0,0.05799728]
[1734291671902,0.42997642,103140.0,103130.0,0.25192628]
[1734291672037,0.42997642,103140.0,103130.0,0.25201248]
[1734291672453,0.43014882,103140.0,103130.0,0.25201248]
[1734291674715,0.43014882,103140.0,103130.0,0.40201248]
[1734291680348,0.23623782,103140.0,103130.0,0.40201248]
[1734291685298,0.23623782,103140.0,103130.0,0.25201248]
[1734291685937,0.24148329,103140.0,103130.0,0.25201248]
[1734291687211,0.24148329,103140.0,103130.0,0.27501248]
[1734291692511,0.01172926,103140.0,103130.0,0.54100704]
[1734291692727,0.01172926,103140.0,103130.0,2.62334321]
[1734291692942,0.01172926,103140.0,103130.0,2.56534593]
[1734291693182,0.01172926,103140.0,103130.0,3.09485021]
[1734291693420,0.01172926,103140.0,103130.0,3.11470019]
[1734291693622,0.01172926,103140.0,103130.0,3.40308613]
[1734291693842,0.0001724,103170.0,103140.0,0.223]
[1734291694049,0.0001724,103170.0,103160.0,0.55536484]
[1734291694250,0.0001724,103170.0,103160.0,2.86692822]
[1734291694689,0.0001724,103170.0,103160.0,1.32585594]
[1734291694898,0.0001724,103170.0,103160.0,2.12412034]
[1734291695540,0.0001724,103170.0,103160.0,1.98806144]
[1734291695990,0.0001724,103170.0,103160.0,2.11849894]
[1734291696631,0.0001724,103170.0,103160.0,1.98799406]
[1734291698285,0.0001724,103170.0,103160.0,1.98480282]
[1734291698489,0.0001724,103170.0,103160.0,1.98430282]
[1734291698693,0.0001724,103170.0,103160.0,1.81046435]
[1734291699423,0.0001724,103170.0,103160.0,1.17989384]
[1734291699669,0.0001724,103170.0,103160.0,1.37376684]
[1734291699886,0.0001724,103170.0,103160.0,1.43176412]
[1734291700716,0.0001724,103170.0,103160.0,1.34497091]
[1734291701458,0.01031347,103170.0,103160.0,1.34497091]
[1734291701661,0.01031347,103170.0,103160.0,1.36797091]
[1734291701860,0.01031347,103170.0,103160.0,1.37515483]
[1734291702499,0.01031347,103170.0,103160.0,1.35215483]
[1734291703544,0.01031347,103170.0,103160.0,1.37815868]
[1734291703545,0.00649623,103170.0,103160.0,1.37815868]
[1734291703748,0.00649623,103170.0,103160.0,0.57514168]
[1734291703950,0.00649623,103170.0,103160.0,0.58907355]
[1734291704154,0.00649623,103170.0,103160.0,2.27166755]
[1734291704766,0.00649623,103170.0,103160.0,2.13411255]
[1734291704992,0.00649623,103170.0,103160.0,2.12011255]
[1734291708607,0.00965662,103170.0,103160.0,2.12011255]
[1734291714653,0.00965662,103170.0,103160.0,2.19611255]
[1734291717530,0.0001724,103170.0,103160.0,2.19611255]
[1734291717737,0.00965925,103170.0,103160.0,2.19611255]
[1734291718354,0.00965925,103170.0,103160.0,1.90496455]
[1734291718535,0.00965925,103170.0,103160.0,1.55144155]
[1734291719861,0.00965925,103170.0,103160.0,1.27246955]
[1734291720497,0.00965925,103170.0,103160.0,1.27255575]
[1734291725323,0.00586719,103170.0,103160.0,1.27255575]
[1734291726841,0.0001724,103170.0,103160.0,0.57515975]
[1734291727043,0.0001724,103170.0,103160.0,1.80432575]
[1734291727267,0.00586715,103170.0,103160.0,1.80432575]
[1734291728533,0.00586715,103170.0,103160.0,1.89080216]
[1734291731401,0.00899473,103170.0,103160.0,1.89080216]
[1734291731602,0.00899473,103170.0,103160.0,2.31146052]
[1734291733620,0.00899473,103170.0,103160.0,2.48441334]
[1734291734675,0.00899473,103170.0,103160.0,2.70060437]
[1734291735588,0.00899473,103170.0,103160.0,2.61412796]
[1734291736620,0.00899473,103170.0,103160.0,2.48441334]
[1734291737563,0.00899473,103170.0,103160.0,2.31146052]
[1734291738477,0.00899473,103170.0,103160.0,2.71989098]
[1734291738702,0.00899473,103170.0,103160.0,2.76312919]
[1734291739346,0.00899473,103170.0,103160.0,1.53396319]
[1734291739765,0.00899473,103170.0,103160.0,5.12695873]
[1734291740007,0.00899473,103170.0,103160.0,5.53538919]
[1734291740223,0.00899473,103170.0,103160.0,4.66554519]
[1734291740639,0.00899473,103170.0,103160.0,3.50899619]
[1734291745119,0.08499473,103170.0,103160.0,2.82609219]
[1734291746469,0.08499473,103170.0,103160.0,2.82917431]
[1734291753123,0.08499473,103170.0,103160.0,2.82798528]
[1734291755417,0.08499473,103170.0,103160.0,2.82796713]
[1734291759879,0.08499473,103170.0,103160.0,2.82816501]
[1734291760291,0.08499473,103170.0,103160.0,3.21376545]
[1734291760505,0.08499473,103170.0,103160.0,2.95261807]
[1734291761953,0.08499473,103170.0,103160.0,2.82824319]
[1734291762160,0.08499473,103170.0,103160.0,2.39430019]
[1734291762372,0.08499473,103170.0,103160.0,2.30130919]
[1734291762794,0.08499473,103170.0,103160.0,2.23834719]
[1734291764412,0.08499473,103170.0,103160.0,2.24032683]
[1734291764775,0.08499473,103170.0,103160.0,1.85093883]
[1734291764991,0.13109473,103170.0,103160.0,1.67694699]
[1734291765193,0.13109473,103170.0,103160.0,1.83252583]
[1734291765410,0.13109473,103170.0,103160.0,1.68432683]
[1734291765842,0.13109473,103170.0,103160.0,1.27498713]
[1734291766258,0.13109473,103170.0,103160.0,1.23139445]
[1734291766661,0.13109473,103170.0,103160.0,1.27498713]
[1734291767025,0.13109473,103170.0,103160.0,1.23139637]
[1734291769294,0.13109473,103170.0,103160.0,1.40543587]
[1734291772829,0.13109473,103170.0,103160.0,1.11435257]
[1734291773245,0.13109473,103170.0,103160.0,1.3278381]
[1734291775251,0.13109473,103170.0,103160.0,1.41482075]
[1734291775608,0.13109473,103170.0,103160.0,1.26858775]
[1734291775863,0.13109473,103170.0,103160.0,1.7085291]
[1734291776239,0.13109473,103170.0,103160.0,1.79550813]
[1734291778288,0.13109473,103170.0,103160.0,1.79743882]
[1734291782835,0.13109473,103170.0,103160.0,1.92789805]
[1734291785337,0.13109473,103170.0,103160.0,1.9018942]
[1734291786016,0.13109473,103170.0,103160.0,1.92789805]
[1734291786658,0.13109473,103170.0,103160.0,1.92762753]
[1734291792025,0.13109473,103170.0,103160.0,1.62250572]
[1734291792650,0.13109473,103170.0,103160.0,1.73850028]
[1734291795689,0.13109473,103170.0,103160.0,1.75443058]
[1734291798645,0.13109473,103170.0,103160.0,2.79671958]
[1734291798857,0.13109473,103170.0,103160.0,2.79381358]
[1734291799137,0.13109473,103170.0,103160.0,2.7358163]
[1734291799716,0.13109473,103170.0,103160.0,2.64885751]
[1734291799923,0.13109473,103170.0,103160.0,2.64908651]
[1734291800163,0.13109473,103170.0,103160.0,2.64917271]
[1734291800935,0.13109473,103170.0,103160.0,2.73616608]
[1734291801145,0.13109473,103170.0,103160.0,2.62671013]
[1734291801276,0.13109473,103170.0,103160.0,2.53971371]
[1734291801968,0.13109473,103170.0,103160.0,2.62670195]
[1734291806731,0.13109473,103170.0,103160.0,2.60089125]
[1734291807339,0.13109473,103170.0,103160.0,2.79476425]
[1734291809464,0.13109473,103170.0,103160.0,2.66421]
[1734291810258,0.13109473,103170.0,103160.0,1.500839]
[1734291811277,0.13109473,103170.0,103160.0,1.207362]
[1734291811533,0.13109473,103170.0,103160.0,1.772066]
[1734291811747,0.13109473,103170.0,103160.0,1.625796]
[1734291812004,0.13109473,103170.0,103160.0,1.601579]
[1734291814059,0.13109473,103170.0,103160.0,1.56410658]
[1734291816863,0.13109473,103170.0,103160.0,1.4334629]
[1734291820713,0.13109473,103170.0,103160.0,1.6512391]
[1734291821133,0.13109473,103170.0,103160.0,1.4334629]
[1734291823293,0.23014876,103170.0,103160.0,1.45693247]
[1734291823514,0.42400276,103170.0,103160.0,0.87599886]
[1734291823724,0.42400276,103170.0,103160.0,0.74535609]
[1734291824146,0.42400276,103170.0,103160.0,0.57111]
[1734291824351,0.42400276,103170.0,103160.0,0.14521569]
[1734291824559,0.42400276,103170.0,103160.0,0.29521569]
[1734291824772,0.42400276,103170.0,103160.0,0.20808348]
[1734291825194,0.42400276,103170.0,103160.0,8.62e-05]
[1734291825608,0.42400276,103170.0,103160.0,0.05808348]
[1734291826241,0.42400276,103170.0,103160.0,8.62e-05]
[1734291826444,0.42400276,103170.0,103160.0,0.1500862]
[1734291828347,0.42400276,103170.0,103160.0,8.62e-05]
[1734291829955,0.42400276,103170.0,103160.0,0.20808348]
[1734291831110,0.42400276,103170.0,103160.0,0.05808348]
[1734291839345,0.42400276,103170.0,103160.0,8.62e-05]
[1734291846984,0.42400276,103170.0,103160.0,0.05808348]
[1734291850163,0.23014876,103170.0,103160.0,0.45995376]
[1734291850799,0.23014876,103170.0,103160.0,0.40195648]
[1734291851287,0.23014876,103170.0,103160.0,0.45995376]
[1734291851912,0.23014876,103170.0,103160.0,0.40195648]
[1734291852328,0.23014876,103170.0,103160.0,0.45995376]
[1734291853156,0.23014876,103170.0,103160.0,0.40195648]
[1734291854414,0.23014876,103170.0,103160.0,0.3439592]
[1734291854624,0.23014876,103170.0,103160.0,0.40195648]
[1734291855040,0.42400276,103170.0,103160.0,0.40195648]
[1734291856189,0.42400276,103170.0,103160.0,0.1500862]
[1734291858743,0.42400276,103170.0,103160.0,8.62e-05]
[1734291860124,0.44369548,103170.0,103160.0,8.62e-05]
[1734291860546,0.42400276,103170.0,103160.0,8.62e-05]
[1734291861379,0.0806,103160.0,103150.0,0.20799728]
[1734291861564,0.17965403,103160.0,103150.0,0.40188028]
[1734291861971,0.18801071,103160.0,103150.0,0.40188028]
[1734291869305,0.18801071,103160.0,103150.0,0.48899582]
[1734291871335,0.18801071,103160.0,103150.0,0.9143709]
[1734291871643,0.18801071,103160.0,103150.0,0.91458385]
[1734291872682,0.18801071,103160.0,103150.0,0.72070085]
[1734291872891,0.38188371,103160.0,103150.0,0.72070085]
[1734291873910,0.38188371,103160.0,103150.0,0.08553531]
[1734291874535,0.38188371,103160.0,103150.0,0.02753803]
[1734291874743,0.38188371,103160.0,103150.0,0.08553531]
[1734291874933,0.43138371,103160.0,103150.0,0.08553531]
[1734291875297,0.23751071,103160.0,103150.0,0.27942731]
[1734291875902,0.23751071,103160.0,103150.0,0.25188928]
[1734291878843,0.23751071,103160.0,103150.0,0.193892]
[1734291879048,0.43138371,103160.0,103150.0,0.25188928]
[1734291879970,0.43138371,103160.0,103150.0,0.05799728]
[1734291880179,0.43138371,103160.0,103140.0,0.96460877]
[1734291880374,0.09905403,103150.0,103140.0,1.21267816]
[1734291880575,0.10738405,103150.0,103140.0,1.21267816]
[1734291880939,0.10738405,103150.0,103140.0,1.15476708]
[1734291881118,0.18878405,103150.0,103140.0,1.0385603]
[1734291881577,0.18878405,103150.0,103140.0,0.78666402]
[1734291881989,0.18878405,103150.0,103140.0,0.55269091]
[1734291883258,0.18878405,103150.0,103140.0,0.42203787]
[1734291884121,0.18878405,103150.0,103140.0,1.10737092]
[1734291884886,0.18878405,103150.0,103140.0,1.10738134]
[1734291889040,0.43257605,103150.0,103140.0,0.08719122]
[1734291889252,0.43257605,103150.0,103140.0,8.62e-05]
[1734291890274,0.43257605,103150.0,103140.0,0.1500862]
[1734291894165,0.43274845,103150.0,103140.0,0.1500862]
[1734291894567,0.43274845,103150.0,103140.0,0.20808348]
[1734291901042,0.43274845,103150.0,103140.0,0.1500862]
[1734291903698,0.43274845,103150.0,103140.0,0.40199448]
[1734291905466,0.43274845,103150.0,103140.0,8.62e-05]
[1734291911241,0.45783078,103150.0,103140.0,8.62e-05]
[1734291912956,0.65688481,103150.0,103140.0,8.62e-05]
[1734291913205,0.64483345,103150.0,103140.0,8.62e-05]
[1734291913426,0.64457735,103150.0,103140.0,8.62e-05]
[1734291917633,0.55757468,103150.0,103140.0,8.62e-05]
[1734291918357,0.64457735,103150.0,103140.0,8.62e-05]
[1734291918617,0.55757468,103150.0,103140.0,8.62e-05]
[1734291919366,0.64457735,103150.0,103140.0,8.62e-05]
[1734291919609,0.55757468,103150.0,103140.0,8.62e-05]
[1734291921425,0.64454346,103150.0,103140.0,8.62e-05]
[1734291921692,0.55757468,103150.0,103140.0,0.05808348]
[1734291923245,0.64454346,103150.0,103140.0,0.05808348]
[1734291924533,0.55757468,103150.0,103140.0,0.05808348]
[1734291924941,0.53249235,103150.0,103140.0,0.05808348]
[1734291930366,0.61952341,103150.0,103140.0,0.05808348]
[1734291931029,0.56952341,103150.0,103140.0,0.05808348]
[1734291931473,0.61952341,103150.0,103140.0,0.05808348]
[1734291932720,0.56952341,103150.0,103140.0,0.05808348]
[1734291932944,0.61952341,103150.0,103140.0,0.05808348]
[1734291934237,0.56952341,103150.0,103140.0,0.05808348]
[1734291934653,0.61952341,103150.0,103140.0,0.05808348]
[1734291934946,0.56952341,103150.0,103140.0,0.05808348]
[1734291935573,0.61952341,103150.0,103140.0,0.05808348]
[1734291936199,0.56952341,103150.0,103140.0,0.05808348]
[1734291937438,0.70007,103150.0,103140.0,0.05808348]
[1734291937856,0.56952341,103150.0,103140.0,0.05808348]
[1734291938923,0.56956208,103150.0,103140.0,0.05808348]
[1734291941230,0.48249235,103150.0,103140.0,0.05799728]
[1734291941658,0.48249235,103150.0,103140.0,0.05808348]
[1734291947489,0.56956208,103150.0,103140.0,0.05808348]
[1734291948369,0.56952372,103150.0,103140.0,0.05808348]
[1734291949608,0.51952372,103150.0,103140.0,0.05808348]
[1734291949814,0.56952372,103150.0,103140.0,0.05808348]
[1734291950306,0.56952372,103150.0,103140.0,8.62e-05]
[1734291951047,0.70007078,103150.0,103140.0,8.62e-05]
[1734291955441,0.70007078,103150.0,103140.0,0.05808348]
[1734291957133,0.70011855,103150.0,103140.0,0.05808348]
[1734291960483,0.65011855,103150.0,103140.0,0.05808348]
[1734291960709,0.70011855,103150.0,103140.0,0.05808348]
[1734291960918,0.70011855,103150.0,103140.0,8.62e-05]
[1734291961332,0.87421952,103150.0,103140.0,8.62e-05]
[1734291964850,0.87429912,103150.0,103140.0,8.62e-05]
[1734291969357,0.87438324,103150.0,103140.0,8.62e-05]
[1734291970398,0.193929,103130.0,103120.0,0.42606254]
[1734291970612,0.29298303,103130.0,103120.0,0.53829608]
[1734291970815,0.30124328,103130.0,103120.0,0.53829608]
[1734291971017,0.30124328,103130.0,103120.0,0.53717868]
[1734291971440,0.30124328,103130.0,103120.0,0.24470576]
[1734291975659,0.10731428,103130.0,103120.0,0.43874006]
[1734291976534,0.10731428,103130.0,103120.0,0.45464006]
[1734291976744,0.10731428,103130.0,103120.0,0.51263734]
[1734291977180,0.10731428,103130.0,103120.0,0.79255369]
[1734291977640,0.00826025,103130.0,103120.0,1.70899074]
[1734291977859,0.00826025,103130.0,103120.0,1.10959598]
[1734291978070,0.00071793,103150.0,103140.0,0.0632]
[1734291978298,0.00071793,103150.0,103140.0,4.69838114]
[1734291978519,0.00762909,103150.0,103140.0,4.58200348]
[1734291978723,0.00071793,103150.0,103140.0,4.79733422]
[1734291978941,0.00763095,103150.0,103140.0,4.6664927]
[1734291979587,0.00763095,103150.0,103140.0,4.58024845]
[1734291980007,0.00763095,103150.0,103140.0,3.80408138]
[1734291980462,0.00763095,103150.0,103140.0,3.49910539]
[1734291980692,0.00763095,103150.0,103140.0,3.67313915]
[1734291981469,0.00763095,103150.0,103140.0,3.80359719]
[1734291982131,0.00763095,103150.0,103140.0,2.82315095]
[1734291982768,0.00763095,103150.0,103140.0,2.8451046]
[1734291983591,0.00763095,103150.0,103140.0,2.71406363]
[1734291984597,0.00763095,103150.0,103140.0,2.73368202]
[1734291985418,0.00763095,103150.0,103140.0,1.49261542]
[1734291985614,0.00763095,103150.0,103140.0,1.66660726]
[1734291985848,0.00763095,103150.0,103140.0,1.25687548]
[1734291986058,0.00763095,103150.0,103140.0,1.11309048]
[1734291986399,0.00763095,103150.0,103140.0,0.96818224]
[1734291987155,0.00763095,103150.0,103140.0,0.84028424]
[1734291988167,0.00763095,103150.0,103140.0,0.56031324]
[1734291988574,0.00763095,103150.0,103140.0,0.84028424]
[1734291989240,0.00763095,103150.0,103140.0,0.79298424]
[1734291989444,0.00763095,103150.0,103140.0,0.51301324]
[1734291992480,0.00763095,103150.0,103140.0,0.5014776]
[1734291994463,0.00763095,103150.0,103140.0,0.28939673]
[1734291994664,0.00763095,103150.0,103140.0,0.48330773]
[1734291996159,0.00763095,103150.0,103140.0,0.48647999]
[1734291999845,0.00763095,103150.0,103140.0,0.48330773]
[1734292000788,0.00763095,103150.0,103140.0,0.36731317]
[1734292001003,0.00763095,103150.0,103140.0,0.48330773]
[1734292003683,0.18988498,103150.0,103140.0,0.46368934]
[1734292010170,0.18988498,103150.0,103140.0,0.46377554]
[1734292020577,0.18988498,103150.0,103140.0,0.55069082]
[1734292021069,0.18988498,103150.0,103140.0,0.43469626]
[1734292021277,0.18988498,103150.0,103140.0,0.55069082]
[1734292022516,0.18988498,103150.0,103140.0,0.95991852]
[1734292022758,0.18988498,103150.0,103140.0,0.55069082]
[1734292023708,0.18988498,103150.0,103140.0,0.68106374]
[1734292024488,0.18988498,103150.0,103140.0,0.96028292]
[1734292024690,0.18988498,103150.0,103140.0,1.16137877]
[1734292025752,0.18988498,103150.0,103140.0,1.37866697]
[1734292025989,0.09083095,103150.0,103140.0,2.81062397]
[1734292026165,0.09083095,103150.0,103140.0,2.47955369]
[1734292027283,0.09083095,103150.0,103140.0,2.4793794]
[1734292028500,0.09083095,103150.0,103140.0,2.34871216]
[1734292029323,0.09083095,103150.0,103140.0,2.47940778]
[1734292029530,0.09083095,103150.0,103140.0,2.34871216]
[1734292030366,0.09083095,103150.0,103140.0,2.07452216]
[1734292030543,0.09083095,103150.0,103140.0,2.02607916]
[1734292030776,0.09083095,103150.0,103140.0,1.86137116]
[1734292031189,0.09083095,103150.0,103140.0,1.86010972]
[1734292032035,0.09083095,103150.0,103140.0,1.86051366]
[1734292034339,0.09083095,103150.0,103140.0,1.16005266]
[1734292034543,0.09083095,103150.0,103140.0,2.38079766]
[1734292036902,0.09083095,103150.0,103140.0,2.33525966]
[1734292037147,0.09083095,103150.0,103140.0,1.10205538]
[1734292037364,0.09083095,103150.0,103140.0,1.16005266]
[1734292037812,0.18988498,103150.0,103140.0,1.0440581]
[1734292038031,0.18988498,103150.0,103140.0,1.20678833]
[1734292038261,0.18988498,103150.0,103140.0,1.29394965]
[1734292038493,0.18988498,103150.0,103140.0,1.13404069]
[1734292038918,0.23598498,103150.0,103140.0,1.13404069]